bitfinex-derivatives/quotes_BNBF0:USTF0_20250303
["timestamp","ask_amount","ask_price","bid_price","bid_amount"]
[1741026497149,0.31403681,586.42,583.54,0.28992887]
[1741026497350,0.31403681,586.41,583.55,0.28992887]
[1741026497549,0.31403681,586.41,583.56,0.28992887]
[1741026497749,0.31403681,586.41,583.57,0.28992887]
[1741026498250,0.31409096,586.4,583.51,1.51388479]
[1741026498450,0.31409096,586.39,583.58,0.28998256]
[1741026498649,0.31409096,586.38,583.59,0.28998256]
[1741026498850,0.31409096,586.37,583.6,0.28998256]
[1741026499043,0.31409096,586.37,583.61,0.28998256]
[1741026499350,0.31409096,586.37,583.62,0.28998256]
[1741026499553,0.31409096,586.37,583.63,0.28998256]
[1741026499745,0.31409096,586.37,583.51,0.28998256]
[1741026499950,0.31409096,586.37,583.64,0.28998256]
[1741026500244,0.31409096,586.37,583.65,0.28998256]
[1741026500447,0.31409096,586.36,583.66,0.28998256]
[1741026500650,0.31409096,586.35,583.67,0.28998256]
[1741026500945,0.31409096,586.34,583.68,0.28998256]
[1741026501149,0.31409096,586.35,582.72,0.28998256]
[1741026501351,0.31409096,586.34,583.69,0.28998256]
[1741026501552,3.73394701,586.35,583.7,0.28998256]
[1741026501744,0.31409096,586.34,583.71,0.28998256]
[1741026501945,0.31409096,586.33,583.72,0.28998256]
[1741026502149,0.31409096,586.33,582.72,0.28998256]
[1741026502351,0.31409096,586.33,582.73,0.28998256]
[1741026502650,0.31409096,586.33,582.74,0.28998256]
[1741026502851,5.9296866,586.33,582.75,0.28998256]
[1741026503053,1.85817336,586.32,582.76,0.28998256]
[1741026503250,0.31409096,586.31,582.77,0.28998256]
[1741026503455,0.31409096,586.31,582.78,0.28998256]
[1741026503750,0.31409096,586.31,582.79,0.28998256]
[1741026503951,0.31409096,586.3,582.79,0.28998256]
[1741026504146,0.31409096,586.29,582.8,0.28998256]
[1741026504349,0.31409096,586.29,582.81,0.28998256]
[1741026504545,0.31409096,586.29,582.82,0.28998256]
[1741026504745,1.78576774,586.28,582.83,0.28998256]
[1741026504952,0.31409096,586.27,582.84,0.28998256]
[1741026505147,0.31409096,586.27,582.85,0.28998256]
[1741026505346,0.31409096,586.27,582.86,0.28998256]
[1741026505551,6.43992158,586.27,582.87,0.28998256]
[1741026505751,1.85817336,586.26,582.88,0.28998256]
[1741026506045,1.5440824,586.26,582.6,1.51388479]
[1741026506351,0.31427778,586.25,582.61,0.29016697]
[1741026506546,0.31427778,586.24,582.62,0.29016697]
[1741026506746,0.31427778,586.23,582.63,0.29016697]
[1741026506951,3.05040927,586.22,582.64,0.29016697]
[1741026507252,3.05040927,586.21,582.65,0.29016697]
[1741026507553,5.4750948,586.22,582.6,1.51388479]
[1741026507753,0.31432789,586.21,582.61,0.2902163]
[1741026508052,0.31432789,586.21,581.89,2.57570676]
[1741026508053,1.85614074,586.21,582.66,1.51388479]
[1741026508247,0.31432789,586.2,582.67,0.2902163]
[1741026508450,0.31432789,586.2,582.68,0.2902163]
[1741026508651,5.78980301,586.2,582.69,0.2902163]
[1741026508852,2.3689584,586.19,582.7,0.2902163]
[1741026509052,0.31432789,586.18,582.71,0.2902163]
[1741026509254,0.31427296,586.17,582.72,0.29016156]
[1741026509553,0.31427296,586.16,582.73,0.29016156]
[1741026509756,0.31427296,586.15,582.74,0.29016156]
[1741026510054,0.31427296,586.15,582.09,2.57570676]
[1741026510055,0.31427296,586.14,582.75,0.29016156]
[1741026510247,2.36890347,586.17,582.76,0.29016156]
[1741026510447,0.31427296,586.16,582.77,0.29016156]
[1741026510652,0.31427296,586.16,582.78,0.29016156]
[1741026510854,1.78608089,586.15,582.79,0.29016156]
[1741026511049,0.31427296,586.14,582.8,0.29016156]
[1741026511249,0.31427296,586.14,582.81,0.29016156]
[1741026511448,0.31427296,586.14,582.82,0.29016156]
[1741026511650,0.31427296,586.14,582.83,0.29016156]
[1741026511851,0.31427296,586.14,582.84,0.29016156]
[1741026512048,1.558,586.13,582.85,0.29016156]
[1741026512253,0.31427296,586.12,582.86,0.29016156]
[1741026512452,0.31427296,586.12,582.87,0.29016156]
[1741026512654,0.31427296,586.12,582.88,0.29016156]
[1741026512857,3.05094865,586.12,582.89,0.29016156]
[1741026513057,0.31427296,586.11,582.9,0.29016156]
[1741026513257,3.01510813,586.12,582.91,0.29016156]
[1741026513456,6.12167978,586.12,582.44,1.51388479]
[1741026513658,0.31410387,586.11,582.92,0.28999505]
[1741026513856,0.31410387,586.1,582.93,0.28999505]
[1741026514052,0.31410387,586.09,582.94,0.28999505]
[1741026514360,0.31410387,586.08,582.95,0.28999505]
[1741026514659,0.31410387,586.07,582.96,0.28999505]
[1741026514859,3.73494848,586.11,582.97,0.28999505]
[1741026515060,3.04990798,586.1,582.98,0.28999505]
[1741026515261,0.31410387,586.09,582.99,0.28999505]
[1741026515557,6.12054549,586.12,583.0,0.29012314]
[1741026515760,0.31423345,586.11,583.01,0.29012314]
[1741026515956,0.31423345,586.11,583.02,0.29012314]
[1741026516260,0.31423345,586.11,583.03,0.29012314]
[1741026516461,0.31423345,586.11,583.04,0.29012314]
[1741026516757,0.31423345,586.1,583.05,0.29012314]
[1741026517063,0.31423345,586.09,583.06,0.29012314]
[1741026517360,0.31423345,586.08,583.07,0.29012314]
[1741026517556,0.31423345,586.07,583.08,0.29012314]
[1741026517760,0.31423345,586.06,583.09,0.29012314]
[1741026517960,0.31423345,586.05,583.1,0.29012314]
[1741026518261,0.31423345,586.04,583.11,0.29012314]
[1741026518462,0.31423345,586.03,583.12,0.29012314]
[1741026518658,0.31423345,586.02,583.13,0.29012314]
[1741026518853,0.31423345,586.01,583.14,0.29012314]
[1741026519054,0.31423345,586.0,583.15,0.29012314]
[1741026519363,1.249,586.01,583.16,0.29012314]
[1741026519364,0.31423345,585.99,583.16,0.29012314]
[1741026519553,0.31423345,585.98,583.17,0.29012314]
[1741026519758,1.7861802,585.98,583.18,0.29012314]
[1741026520158,0.31427867,585.97,583.19,0.29016807]
[1741026520359,0.31427867,585.97,583.2,0.29016807]
[1741026520660,0.34138431,585.85,583.33,0.3428591]
[1741026520861,0.31427867,585.84,583.34,0.29016807]
[1741026521061,0.31427867,585.84,583.35,0.29016807]
[1741026521259,0.31427867,585.84,583.36,0.29016807]
[1741026521454,0.31427867,585.84,583.37,0.29016807]
[1741026521763,0.31427867,585.84,583.38,0.29016807]
[1741026521956,0.31427867,585.84,583.39,0.29016807]
[1741026522356,0.31427867,585.84,583.4,0.29016807]
[1741026522559,0.31427867,585.84,583.34,0.29016807]
[1741026522755,0.31427867,585.84,583.41,0.29016807]
[1741026523054,0.31427867,585.83,583.42,0.29016807]
[1741026523258,0.31427867,585.84,583.43,0.29016807]
[1741026523461,0.34138431,585.85,583.33,0.3428591]
[1741026523655,0.31443432,585.83,583.44,0.29032179]
[1741026523856,0.31443432,585.84,583.34,0.29032179]
[1741026524062,0.31443432,585.83,583.35,0.29032179]
[1741026524260,3.05231289,585.84,583.34,0.29032179]
[1741026524557,3.05231289,585.83,583.35,0.29032179]
[1741026524756,3.05231289,585.82,583.34,0.29032179]
[1741026524961,3.05341499,585.81,583.35,0.29032179]
[1741026525161,0.34138431,585.85,583.33,0.3428591]
[1741026525162,3.05341499,585.8,583.36,0.29032179]
[1741026525362,3.05341499,585.79,583.37,0.29032179]
[1741026525662,3.73842183,585.78,583.33,0.3428591]
[1741026525862,5.27926763,585.77,583.34,0.29059743]
[1741026526061,5.79286575,585.76,583.34,0.29059743]
[1741026526255,5.79286575,585.75,583.34,0.29059743]
[1741026526456,5.79286575,585.74,583.34,0.29059743]
[1741026526660,5.79286575,585.73,583.34,0.29059743]
[1741026526860,5.79286575,585.72,583.34,0.29059743]
[1741026527055,5.79286575,585.71,583.34,0.29059743]
[1741026527256,6.43919327,585.7,583.34,0.29059743]
[1741026527457,6.43919327,585.69,583.34,0.29059743]
[1741026527657,5.79286575,585.68,583.34,0.29059743]
[1741026527857,5.79286575,585.67,583.34,0.29059743]
[1741026528062,5.79286575,585.66,583.34,0.29059743]
[1741026528260,5.79286575,585.65,583.34,0.29059743]
[1741026528462,2.36887824,585.64,583.35,0.29059743]
[1741026528663,2.36887824,585.64,583.34,0.29059743]
[1741026528664,0.31443432,585.63,583.34,0.29059743]
[1741026528967,3.05362433,585.62,583.35,0.29059743]
[1741026529162,3.05466801,585.61,583.34,0.29059743]
[1741026529363,3.73972643,585.6,583.35,0.29059743]
[1741026529665,4.59551381,585.59,583.37,0.34283559]
[1741026529964,3.34711788,585.63,583.37,0.34283559]
[1741026529965,5.79417035,585.58,583.37,0.34283559]
[1741026530166,0.34160588,585.47,583.37,0.34283559]
[1741026530365,0.31443432,585.46,583.37,0.34283559]
[1741026531364,0.34160588,585.47,583.37,0.34283559]
[1741026531565,0.961237,585.46,583.38,0.29068411]
[1741026531762,0.961237,585.45,583.38,0.29068411]
[1741026531963,0.31480078,585.44,583.38,0.29068411]
[1741026532158,0.31480078,585.43,583.38,0.29068411]
[1741026532362,0.31480078,585.42,583.38,0.29068411]
[1741026532563,0.31480078,585.41,583.38,0.29068411]
[1741026532765,0.31480078,585.4,583.38,0.29068411]
[1741026532965,0.31480078,585.39,583.38,0.29068411]
[1741026533164,0.31480078,585.38,583.38,0.29068411]
[1741026533365,0.31480078,585.37,583.38,0.29068411]
[1741026533567,0.31480078,585.36,583.38,0.29068411]
[1741026533769,0.31480078,585.35,583.38,0.29068411]
[1741026533969,0.31480078,585.34,583.38,0.29068411]
[1741026534170,0.31480078,585.33,581.88,0.29068411]
[1741026534363,0.31480078,585.32,582.05,0.34361309]
[1741026534562,0.31470397,585.31,582.06,0.29058787]
[1741026534763,0.31470397,585.3,582.07,0.29058787]
[1741026534967,1.78830663,585.31,582.08,0.29058787]
[1741026535167,0.31470397,585.3,582.09,0.29058787]
[1741026535363,0.31470397,585.3,582.1,0.29058787]
[1741026535567,0.31470397,585.3,582.11,0.29058787]
[1741026535767,0.31470397,585.3,582.12,0.29058787]
[1741026536069,1.029,585.29,582.13,0.29058787]
[1741026536266,0.31470397,585.28,582.14,0.29058787]
[1741026536463,0.31470397,585.28,582.15,0.29058787]
[1741026536662,0.31470397,585.28,582.16,0.29058787]
[1741026536868,0.31470397,585.28,582.17,0.29058787]
[1741026537168,0.31470397,585.28,582.18,0.29058787]
[1741026537364,0.31470397,585.28,582.33,0.34344787]
[1741026537563,0.34179854,585.14,582.34,0.29058787]
[1741026537770,0.31470397,585.13,582.35,0.29058787]
[1741026538069,0.34179854,585.14,582.36,0.29058787]
[1741026538269,0.34179854,585.14,582.37,0.29058787]
[1741026538466,0.34179854,585.14,582.38,0.29058787]
[1741026538671,0.34179854,585.14,582.5,0.34334763]
[1741026538869,0.31450071,585.13,582.51,0.29058787]
[1741026539064,0.31450071,585.13,582.52,0.29058787]
[1741026539267,1.158,585.12,582.53,0.29058787]
[1741026539464,1.158,585.12,582.5,0.34334763]
[1741026539465,0.31450384,585.11,582.54,0.29039084]
[1741026539670,1.158,585.12,582.55,0.29039084]
[1741026539873,0.3145206,585.11,582.56,0.29039084]
[1741026540167,1.158,585.12,582.57,0.29039084]
[1741026540368,1.158,585.12,582.58,0.29039084]
[1741026540563,1.158,585.12,582.59,0.29039084]
[1741026540769,1.158,585.12,582.6,0.29039084]
[1741026540969,1.158,585.12,582.61,0.29039084]
[1741026541173,0.31452221,585.11,582.62,0.29039084]
[1741026541371,0.31452221,585.11,582.63,0.29039084]
[1741026541571,0.31452221,585.11,582.64,0.29039084]
[1741026541767,1.158,585.12,582.65,0.29039084]
[1741026541967,1.158,585.12,582.66,0.29039084]
[1741026542172,1.158,585.12,582.67,0.29039084]
[1741026542371,1.158,585.12,582.68,0.29039084]
[1741026542571,1.158,585.12,582.5,0.34334763]
[1741026542572,1.158,585.12,582.69,0.29039084]
[1741026542971,1.158,585.12,582.7,0.29039084]
[1741026543171,1.158,585.12,582.71,0.29039084]
[1741026543472,1.158,585.12,582.5,0.34334763]
[1741026543473,1.158,585.12,582.72,0.29039084]
[1741026543775,1.158,585.12,582.73,0.29039084]
[1741026543976,1.158,585.12,582.74,0.29039084]
[1741026544271,1.158,585.12,582.75,0.29039084]
[1741026544474,1.158,585.12,582.76,0.29039084]
[1741026544670,1.158,585.12,582.77,0.29039084]
[1741026544868,1.158,585.12,582.78,0.29039084]
[1741026545173,1.158,585.12,582.79,0.29039084]
[1741026545374,1.158,585.12,582.8,0.29039084]
[1741026545574,1.158,585.12,582.81,0.29039084]
[1741026545871,1.158,585.12,582.82,0.29039084]
[1741026546274,1.158,585.12,582.83,0.29039084]
[1741026546471,1.158,585.12,582.84,0.29039084]
[1741026546671,1.158,585.12,582.5,0.34334763]
[1741026546672,1.158,585.12,582.85,0.29039084]
[1741026546976,1.158,585.12,582.86,0.29039084]
[1741026547276,1.158,585.12,582.87,0.29038016]
[1741026547578,1.158,585.12,582.88,0.29038016]
[1741026547774,1.158,585.12,582.89,0.29038016]
[1741026547975,1.158,585.12,582.9,0.29038016]
[1741026548171,0.31453293,585.11,582.91,0.29038016]
[1741026548370,0.31453293,585.11,582.92,0.29038016]
[1741026548575,0.31453293,585.11,582.93,0.29038016]
[1741026548777,1.158,585.12,582.94,0.29038016]
[1741026549076,1.158,585.12,582.95,0.29038016]
[1741026549271,1.158,585.12,582.96,0.29038016]
[1741026549473,1.158,585.12,582.97,0.29038016]
[1741026549674,1.158,585.12,582.98,0.29038016]
[1741026549872,1.158,585.12,582.99,0.29038016]
[1741026550175,1.158,585.12,583.0,0.29038016]
[1741026550676,1.158,585.12,583.01,0.29038016]
[1741026550877,1.158,585.12,583.02,0.29038016]
[1741026551077,1.158,585.12,583.03,0.29038016]
[1741026551278,1.164,585.11,583.04,0.29038016]
[1741026551473,1.164,585.11,583.05,0.29038016]
[1741026551677,1.164,585.11,583.06,0.29038016]
[1741026551882,1.164,585.11,582.98,1.51388479]
[1741026552179,1.164,585.11,582.99,0.29010022]
[1741026552381,1.164,585.11,582.98,1.51388479]
[1741026552382,1.164,585.11,583.0,0.29010022]
[1741026552583,1.164,585.11,583.01,0.29010022]
[1741026552780,1.164,585.11,583.02,0.29010022]
[1741026552982,1.164,585.11,583.03,0.29010022]
[1741026553182,1.164,585.11,583.13,1.51388479]
[1741026553382,1.164,585.11,583.14,0.29010022]
[1741026553582,1.164,585.11,583.15,0.29034072]
[1741026553777,1.164,585.11,583.16,0.29034072]
[1741026553980,1.164,585.11,583.17,0.29034072]
[1741026554182,0.3144849,585.1,583.18,0.29034072]
[1741026554382,0.3144849,585.1,583.19,0.29034072]
[1741026554582,0.3144849,585.1,583.2,0.29034072]
[1741026554884,0.3144849,585.1,583.21,0.29034072]
[1741026555078,0.31455629,585.09,583.22,0.29044269]
[1741026555384,1.164,585.11,583.23,0.29044269]
[1741026555583,1.164,585.11,583.24,0.29044269]
[1741026555782,1.164,585.11,583.25,0.29044269]
[1741026555979,1.164,585.11,583.26,0.29044269]
[1741026556184,1.164,585.11,583.27,0.29044269]
[1741026556379,1.164,585.11,583.28,0.29044269]
[1741026556578,1.164,585.11,582.74,2.57570676]
[1741026556781,1.164,585.11,582.75,0.29030523]
[1741026556981,1.164,585.11,582.76,0.29030523]
[1741026557278,1.164,585.11,582.77,0.29030523]
[1741026557576,1.164,585.11,582.78,0.29030523]
[1741026557781,1.164,585.11,582.79,0.29030523]
[1741026557981,1.164,585.11,582.8,0.29030523]
[1741026558281,1.164,585.11,582.81,0.29030523]
[1741026558485,1.164,585.11,582.82,0.29030523]
[1741026558783,1.164,585.11,582.83,0.29030523]
[1741026558985,1.164,585.11,582.84,0.29030523]
[1741026559188,1.164,585.11,582.85,0.29030523]
[1741026559487,1.164,585.11,582.86,0.29030523]
[1741026559684,1.164,585.11,582.87,0.29030523]
[1741026559885,1.164,585.11,582.88,0.29030523]
[1741026560087,1.164,585.11,582.89,0.29030523]
[1741026560287,1.164,585.11,582.9,0.29030523]
[1741026560483,1.164,585.11,583.37,1.51082594]
[1741026560688,1.164,585.11,583.38,0.29030523]
[1741026560881,1.164,585.11,583.39,0.29030523]
[1741026561082,1.164,585.11,583.4,0.29030523]
[1741026561284,1.164,585.11,583.37,1.51082594]
[1741026561285,1.164,585.11,583.41,0.29030523]
[1741026561483,1.327,585.1,583.42,0.29030523]
[1741026561785,1.327,585.1,583.43,0.29030523]
[1741026562088,1.327,585.1,583.44,0.29030523]
[1741026562287,1.327,585.1,583.45,0.29030523]
[1741026562488,1.327,585.1,583.46,0.29030523]
[1741026562789,1.327,585.1,583.47,0.29030523]
[1741026562982,1.327,585.1,583.38,2.57570676]
[1741026563180,1.327,585.1,583.39,0.28967193]
[1741026563389,1.327,585.1,583.41,0.34281208]
[1741026563587,0.34182775,585.09,583.42,0.28967193]
[1741026563890,0.34182775,585.09,583.43,0.28967193]
[1741026564083,0.34182775,585.09,583.44,0.28967193]
[1741026564389,0.34182775,585.09,583.45,0.28967193]
[1741026564688,0.34182775,585.09,583.46,0.28967193]
[1741026564890,0.34182775,585.09,583.47,0.28967193]
[1741026565188,0.34182775,585.09,583.48,0.28967193]
[1741026565389,0.34182775,585.09,583.49,0.28967193]
[1741026565589,0.972,585.08,583.5,0.28967193]
[1741026565790,0.972,585.08,583.51,0.28967193]
[1741026565990,0.972,585.08,583.52,0.28967193]
[1741026566291,0.972,585.08,583.53,0.63241351]
[1741026566490,0.972,585.08,583.54,0.28967193]
[1741026566690,0.972,585.08,583.55,0.28967193]
[1741026566883,0.972,585.08,583.56,0.28967193]
[1741026567084,0.972,585.08,583.57,0.28967193]
[1741026567291,0.34183943,585.07,583.58,0.28967193]
[1741026567490,0.34183943,585.07,583.59,0.28967193]
[1741026567686,0.34183943,585.07,583.6,0.6323724]
[1741026567890,0.34183943,585.07,583.61,0.28971138]
[1741026568086,0.34183943,585.07,583.62,0.34268873]
[1741026568295,0.34183943,585.07,583.63,0.28971138]
[1741026568494,1.37283943,585.07,583.64,0.28971138]
[1741026568690,1.37283943,585.07,583.66,1.4959598]
[1741026568890,1.37283943,585.07,583.67,0.28971138]
[1741026569094,1.37283943,585.07,583.68,0.28971138]
[1741026569393,1.37283943,585.07,583.69,0.28971138]
[1741026569791,1.37283943,585.07,583.7,0.63235314]
[1741026569990,1.37283943,585.07,583.71,0.28971138]
[1741026570190,1.37283943,585.07,583.72,0.28971138]
[1741026570392,1.37283943,585.07,583.73,0.28971138]
[1741026570595,1.37283943,585.07,583.74,0.28971138]
[1741026570894,1.37283943,585.07,583.75,0.28971138]
[1741026571098,1.37283943,585.07,583.71,0.28971138]
[1741026571293,1.031,585.07,583.72,0.28971138]
[1741026571492,1.031,585.07,583.73,0.28971138]
[1741026571693,1.031,585.07,583.74,0.28971138]
[1741026571895,1.031,585.07,583.75,0.28971138]
[1741026572093,1.031,585.07,583.76,0.28971138]
[1741026572297,1.031,585.07,583.7,0.34264176]
[1741026572298,1.031,585.07,583.77,0.28971138]
[1741026572498,1.031,585.07,583.78,0.28971138]
[1741026572798,1.031,585.07,583.79,0.28971138]
[1741026573000,1.031,585.07,583.8,0.28971138]
[1741026573199,1.031,585.07,583.81,0.28971138]
[1741026573399,1.031,585.07,583.82,0.28971138]
[1741026573599,1.031,585.07,583.83,0.28971138]
[1741026573900,1.031,585.07,583.84,0.28971138]
[1741026574102,1.031,585.07,583.85,0.28971138]
[1741026574302,1.031,585.07,583.86,0.28971138]
[1741026574494,1.031,585.07,583.87,0.28971138]
[1741026574698,1.031,585.07,583.88,0.28971138]
[1741026574896,1.031,585.07,583.89,0.28971138]
[1741026575098,1.031,585.07,583.9,0.28971138]
[1741026575303,2.319,585.07,583.91,0.28971138]
[1741026575501,2.319,585.07,583.92,0.28971138]
[1741026575701,2.319,585.07,583.93,0.28971138]
[1741026575903,2.319,585.07,583.94,0.28971138]
[1741026576202,2.319,585.07,583.95,0.28971138]
[1741026576396,2.319,585.07,583.96,0.28971138]
[1741026576595,2.319,585.07,583.97,0.28971138]
[1741026576795,2.319,585.07,583.98,0.28971138]
[1741026577002,2.319,585.07,583.99,0.28971138]
[1741026577201,2.319,585.07,584.0,0.28971138]
[1741026577402,2.319,585.07,584.01,0.28971138]
[1741026577601,2.319,585.07,584.02,0.28971138]
[1741026577804,2.319,585.07,584.03,0.28971138]
[1741026578003,2.319,585.07,584.04,0.28971138]
[1741026578303,2.319,585.07,584.05,0.28971138]
[1741026578504,2.319,585.07,584.06,0.28971138]
[1741026578802,2.319,585.07,584.07,0.28971138]
[1741026579003,2.319,585.07,584.08,0.28971138]
[1741026579199,2.319,585.07,584.09,0.28971138]
[1741026579396,2.319,585.07,584.1,0.28971138]
[1741026579595,2.319,585.07,584.11,0.28971138]
[1741026579797,2.319,585.07,584.12,0.28971138]
[1741026580097,2.319,585.07,584.13,0.28971138]
[1741026580301,2.319,585.07,584.14,0.28971138]
[1741026580502,2.319,585.07,584.15,0.28971138]
[1741026580707,2.319,585.07,584.16,0.28971138]
[1741026580907,2.319,585.07,584.17,0.28971138]
[1741026581108,2.319,585.07,583.82,0.28971138]
[1741026581302,2.319,585.07,583.83,0.28971138]
[1741026581503,2.319,585.07,583.84,0.28971138]
[1741026581709,2.319,585.07,583.85,0.28971138]
[1741026581911,2.319,585.07,583.86,0.28971138]
[1741026582210,2.319,585.07,583.87,0.28971138]
[1741026582410,2.319,585.07,583.88,0.28971138]
[1741026582604,2.319,585.07,583.89,0.28971138]
[1741026582810,2.319,585.07,583.9,0.28971138]
[1741026583016,2.319,585.07,583.91,0.28971138]
[1741026583212,2.319,585.07,583.92,0.28971138]
[1741026583418,2.319,585.07,583.41,1.49680869]
[1741026583718,2.319,585.07,583.42,0.28977684]
[1741026583916,2.319,585.07,583.43,0.28977684]
[1741026584116,2.319,585.07,583.44,0.28977684]
[1741026584321,2.319,585.07,583.45,0.28977684]
[1741026584518,2.319,585.07,583.46,0.28977684]
[1741026584719,2.319,585.07,582.71,2.57570676]
[1741026584720,2.319,585.07,584.05,1.49680869]
[1741026585013,2.319,585.07,584.06,0.28977684]
[1741026585215,2.319,585.07,584.07,0.28977684]
[1741026585412,2.319,585.07,584.08,0.28977684]
[1741026585716,2.319,585.07,584.09,0.28977684]
[1741026586016,2.319,585.07,584.1,0.28977684]
[1741026586219,2.319,585.07,584.06,0.28977684]
[1741026586519,2.319,585.07,584.07,0.28977684]
[1741026586818,2.319,585.07,584.08,0.28975022]
[1741026587019,2.319,585.07,584.14,1.49680869]
[1741026589420,2.319,585.07,584.08,1.78655891]
[1741026589818,3.446,585.07,584.09,0.28974388]
[1741026590218,3.446,585.07,584.1,0.28974388]
[1741026590519,3.446,585.07,584.11,0.28974388]
[1741026590814,3.446,585.07,584.12,0.28974388]
[1741026591020,3.446,585.07,584.13,0.28962294]
[1741026591220,3.446,585.07,584.14,0.28962294]
[1741026591521,3.446,585.07,584.15,0.28962294]
[1741026591722,4.468,585.07,584.16,0.28962294]
[1741026591921,4.468,585.07,584.17,0.28962294]
[1741026592219,4.468,585.07,584.18,0.28962294]
[1741026592422,4.468,585.07,584.19,0.28962294]
[1741026592721,4.468,585.07,584.2,0.28962294]
[1741026593020,4.468,585.07,584.21,0.28962294]
[1741026593221,4.468,585.07,584.22,0.28962294]
[1741026593434,4.468,585.07,584.34,1.49680869]
[1741026593722,4.468,585.07,584.35,0.28962294]
[1741026593921,4.468,585.07,584.36,0.28962294]
[1741026594122,4.468,585.07,584.37,0.28962294]
[1741026594314,4.468,585.07,584.38,0.28972981]
[1741026594615,4.468,585.07,584.39,0.28972981]
[1741026594822,4.468,585.07,584.4,0.28972981]
[1741026595019,4.468,585.07,584.41,0.28972981]
[1741026595321,4.468,585.07,584.42,0.28972981]
[1741026595520,4.468,585.07,584.54,1.49680869]
[1741026595914,4.468,585.07,584.55,0.28986464]
[1741026596114,4.468,585.07,584.56,0.28986464]
[1741026596317,4.468,585.07,584.57,0.28986464]
[1741026596515,4.468,585.07,584.58,0.28986464]
[1741026596920,4.468,585.07,584.59,0.28986464]
[1741026597121,4.468,585.07,584.55,0.28986464]
[1741026597522,4.468,585.07,584.56,0.28999278]
[1741026597716,4.468,585.07,584.57,0.28999278]
[1741026597916,4.468,585.07,584.58,0.28999278]
[1741026598118,4.468,585.07,584.55,0.28999278]
[1741026598517,4.468,585.07,584.56,0.28999278]
[1741026598722,4.468,585.07,584.09,0.28999278]
[1741026599023,4.468,585.07,584.1,0.28999278]
[1741026599225,4.468,585.07,584.11,0.28999278]
[1741026599425,4.468,585.07,584.12,0.28999278]
[1741026599625,4.468,585.07,584.13,0.28999278]
[1741026599825,4.468,585.07,584.14,0.28999278]
[1741026600124,4.468,585.07,584.15,0.28999278]
[1741026600321,4.468,585.07,584.16,0.28999278]
[1741026600522,4.468,585.07,583.83,1.49680869]
[1741026600824,4.468,585.07,584.09,0.28995593]
[1741026601024,4.468,585.07,584.1,0.28995593]
[1741026601325,4.468,585.07,584.11,0.28995593]
[1741026601524,4.468,585.07,584.09,0.28995593]
[1741026601825,4.468,585.07,584.1,0.28995593]
[1741026602020,4.468,585.07,584.09,0.28995593]
[1741026602227,4.468,585.07,584.1,0.28995593]
[1741026602419,4.468,585.07,584.09,0.28995593]
[1741026602624,4.468,585.07,584.1,0.28995593]
[1741026602925,4.468,585.07,584.11,0.28995593]
[1741026603119,4.468,585.07,584.09,0.28995593]
[1741026603319,4.468,585.07,584.1,0.28995593]
[1741026603524,4.468,585.07,584.11,0.28995593]
[1741026603723,4.468,585.07,584.09,0.28995593]
[1741026603924,4.468,585.07,584.1,0.28995593]
[1741026604125,4.468,585.07,584.09,0.28995593]
[1741026604322,4.468,585.07,584.1,0.28995593]
[1741026604526,4.468,585.07,584.11,0.28995593]
[1741026604927,4.468,585.07,584.12,0.28995593]
[1741026605127,4.468,585.07,584.09,0.28995593]
[1741026605327,4.468,585.07,584.1,0.28995593]
[1741026605520,4.468,585.07,584.11,0.28995593]
[1741026605722,4.468,585.07,584.12,0.28995593]
[1741026605923,4.468,585.07,584.13,0.28995593]
[1741026606127,4.468,585.07,584.14,0.28995593]
[1741026606426,4.468,585.07,584.15,0.28995593]
[1741026606628,4.468,585.07,584.16,0.28995593]
[1741026606829,4.468,585.07,584.17,0.28995593]
[1741026607029,4.468,585.07,584.18,0.28995593]
[1741026607221,4.468,585.07,584.19,0.28995593]
[1741026607422,4.468,585.07,584.2,0.28995593]
[1741026607628,4.468,585.07,584.21,0.28995593]
[1741026607827,4.468,585.07,584.22,0.28995593]
[1741026608028,4.468,585.07,583.48,1.49680869]
[1741026608327,4.468,585.07,584.09,0.28991301]
[1741026608520,4.468,585.07,584.1,0.28991301]
[1741026608725,4.468,585.07,584.11,0.28991301]
[1741026608926,4.468,585.07,584.12,0.28991301]
[1741026609126,4.468,585.07,584.13,0.28991301]
[1741026609327,4.468,585.07,584.14,0.28991301]